Cogmind - Beta 16 @@@ ROGUE MODE // 2026.01.17 @ 15:45:22 Player: Kathisto Result: Self-destructed Performance ------------- Evolutions (1) 500 Regions Visited (2) 400 Robots Destroyed (17) 85 Value Destroyed (324) 324 Prototype IDs (0) 0 Alien Tech Used (0) 0 Bonus (0) 0 TOTAL SCORE: 1309 Bonus ------- None Cogmind --------- Core Integrity 386/400 Matter 294/300 Energy 100/100 System Corruption 0% Temperature Cool (0) Movement Core (300) Ox5 Location -9/Materials Parts ------- > --- POWER (1) -------- (None) > --- PROPULSION (3) --- (None) > --- UTILITY (2) ------ Medium Storage Unit Seismic Detector > --- WEAPON (3) ------- Subdweller Laser Light Assault Rifle > --- INVENTORY (10) --- Light Ion Engine Subdweller Power Source Light Nuclear Core Heat Sink Cooling System Large Storage Unit High-capacity Matter Pod (121) Light Assault Rifle Heavy Assault Rifle Peak State ------------ > --- POWER ------------ Ion Engine > --- PROPULSION ------- Aluminum Leg Aluminum Leg > --- UTILITY ---------- Medium Storage Unit Seismic Detector > --- WEAPON ----------- Subdweller Laser Light Assault Rifle Subdweller Machine Gun > --- INVENTORY -------- Light Ion Engine Subdweller Power Source Light Nuclear Core Heat Sink Large Storage Unit High-capacity Matter Pod Light Assault Rifle [Rating: 11] Favorites ----------- Power Ion Engine Engine Ion Engine Propulsion Aluminum Leg Leg Aluminum Leg Utility Seismic Detector Device Seismic Detector Storage Medium Storage Unit Weapon Light Assault Rifle Energy Gun Medium Laser Ballistic Gun Light Assault Rifle Build | -11 -10 -9 ------- Run | Yrd Mat Mat Slots Evolved 2 | . . 2 Power . | . . . Propulsion 1 | . . 1 Utility . | . . . Weapon 1 | . . 1 Parts Attached 13 | 8 4 1 Power 1 | 1 . . Engine 1 | 1 . . Core . | . . . Reactor . | . . . Propulsion 3 | 2 1 . Treads . | . . . Leg 3 | 2 1 . Wheel . | . . . Hover . | . . . Flight . | . . . Utility 4 | 2 2 . Device 1 | 1 . . Storage 3 | 1 2 . Processor . | . . . Hackware . | . . . Protection . | . . . Artifact . | . . . Weapon 5 | 3 1 1 Energy Gun 2 | 1 1 . Energy Cannon . | . . . Ballistic Gun 3 | 2 . 1 Ballistic Cannon . | . . . Launcher . | . . . Special Weapon . | . . . Impact Weapon . | . . . Slashing Weapon . | . . . Piercing Weapon . | . . . Special Melee Weapon . | . . . Unidentified Prototypes . | . . . Parts Lost 3 | . 2 1 Power . | . . . Propulsion 2 | . 1 1 Utility . | . . . Weapon 1 | . 1 . Highest Loss Streak 1 | . 1 1 To Critical Strikes . | . . . Average Backups 5 | 1 5 7 Power 1 | . 1 3 Propulsion . | . . . Utility 1 | . 1 3 Weapon 1 | . 1 1 Tool/Special . | . . . Unused Backups 6 | . . 6 Power 3 | . . 3 Propulsion . | . . . Utility 2 | . . 2 Weapon 1 | . . 1 Tool/Special . | . . . Average Slot Usage (%) 93 | . 98 78 Engine 13 | . 14 11 Leg 23 | . 26 12 Device 13 | . 14 11 Storage 13 | . 14 11 Energy Gun 12 | . 13 11 Ballistic Gun 16 | . 14 22 Peak Build Rating 11 | 7 9 11 Average Rating 7 | 5 7 10 On Entrance 5 | . 7 9 Avg Prop Armor Cover (%) . | . . . Naked Turns . | . . . Heaviest Build 29 | 14 29 25 Greatest Support 20 | 20 20 20 Greatest Overweight (x) 2 | . 2 2 Average Overweight (x) . | . . 1 Largest Inventory Capacity 15 | 8 15 10 Average Capacity 9 | 7 10 10 Most Carried 9 | 2 9 9 Average Carried 5 | 1 5 7 Final Capacity 10 | 8 10 10 Final Carried 9 | 2 8 9 Class Distribution -------------------- 78% | Mutant 21% | Scavenger-Gunner Dominant Class ---------------- Mutant | -10/Materials Scavenger-Gunner | -9/Materials Resources | -11 -10 -9 ----------- Run | Yrd Mat Mat Matter Collected 535 | 304 184 47 Remotely . | . . . Salvage Created 594 | 158 349 87 Parts 40 | 11 24 5 Haulers Intercepted 2 | . 1 1 Recyclers Shooed 4 | 1 3 . Parts Field Recycled . | . . . Retrieved Matter . | . . . Parts Self-Destructed . | . . . Prevented . | . . . Parts Restored . | . . . Kills | -11 -10 -9 ------- Run | Yrd Mat Mat Combat Hostiles Destroyed 9 | . 8 1 Guns 9 | . 8 1 Classes Destroyed 9 | 3 5 1 Worker 1 | 1 . . Tunneler 3 | 3 . . Hauler 2 | . 1 1 Recycler 1 | 1 . . Watcher 1 | . 1 . Swarmer 3 | . 3 . Grunt 2 | . 2 . Sentry 1 | . . 1 Subdweller 3 | . 3 . Best Kill Streak 4 | 2 4 1 Combat Bots Only 3 | . 3 1 Max Kills in Single Turn 1 | 1 1 1 Gunslinging . | . . . Exploded . | . . . Melee . | . . . Uniques/NPCs Destroyed . | . . . Combat | -11 -10 -9 -------- Run | Yrd Mat Mat Hostile Shots Fired 47 | . 41 6 Missed 8 | . 6 2 Hits 39 | . 35 4 Projectile 39 | . 35 4 Damage Taken 601 | . 544 57 Core 189 | . 175 14 Absorbed by Shields . | . . . Core Remaining (%) 65 | 100 30 . Volleys Fired 68 | 28 35 5 Largest 3 | 2 2 3 Hottest 110 | 70 80 110 Shots Fired 137 | 56 69 12 Gun 137 | 56 69 12 Cannon . | . . . Launcher . | . . . Special . | . . . Kinetic 74 | 28 36 10 Thermal 63 | 28 33 2 Explosive . | . . . Electromagnetic . | . . . Robot Hit Streak 12 | 3 12 8 Robot Miss Streak 4 | 4 3 1 Penetration Max . | . . . Secondary Targets 2 | . 2 . Max Gunslinging Chain 1 | . 1 . Shots Hit Robots 87 | 28 51 8 Core Hits 37 | 9 23 5 Critical Kills . | . . . Critical Parts Destroyed . | . . . Critical Strikes 1 | . 1 . Burn 1 | . 1 . Melee Attacks . | . . . Impact . | . . . Slashing . | . . . Piercing . | . . . Sneak Attacks . | . . . Combat Hostiles . | . . . Follow-up Attacks . | . . . Damage Inflicted 959 | 255 583 121 Guns 946 | 248 577 121 Cannons . | . . . Explosions . | . . . Melee . | . . . Ramming 13 | 7 6 . Kinetic 419 | 96 221 102 Thermal 527 | 152 356 19 Explosive . | . . . Electromagnetic . | . . . Impact . | . . . Slashing . | . . . Piercing . | . . . Highest Corruption 3 | . 3 . Average Corruption 2 | . 2 . Corruption Purged . | . . . Corruption Blocked . | . . . Effects 14 | . 14 . Message Errors 3 | . 3 . Matter Fused 3 | . 3 . Heat Flow Errors 1 | . 1 . Data Loss (minor) 3 | . 3 . Data Loss (major) 2 | . 2 . Misfires 1 | . 1 . Alerts 1 | . 1 . Overload Shots . | . . . Overflow Damage . | . . . Projectiles . | . . . Explosions . | . . . Melee . | . . . Knockbacks . | . . . Impact . | . . . Kinetic . | . . . Secondary . | . . . Self-Inflicted Damage . | . . . Shots . | . . . Rammed . | . . . Targets Rammed 4 | 1 3 . Kicked 4 | 1 3 . Crushed . | . . . Highest Temperature 262 | 200 262 78 Average Temperature 69 | 84 62 26 Received Heat Transfer 147 | . 129 18 Effects 4 | . 4 . Interference 4 | . 4 . Siege Activations . | . . . Martial Activations . | . . . Shielding Activations . | . . . Robots Disrupted . | . . . Combat Hostiles . | . . . Robots Corrupted . | . . . Combat Hostiles . | . . . Parts Fried . | . . . Impact Corruptions . | . . . Robots Melted . | . . . Combat Hostiles . | . . . Parts Melted 3 | . 3 . Heat Transferred 1347 | 444 878 25 Parts Sabotaged . | . . . Parts Stolen . | . . . Parts Stripped . | . . . Power Chain Reactions . | . . . Alert | -11 -10 -9 ------- Run | Yrd Mat Mat Maximum Alert Level . | . . . Low Security (%) 100 | 100 100 100 Level 1 . | . . . Level 2 . | . . . Level 3 . | . . . Level 4 . | . . . Level 5 . | . . . High Security . | . . . Max Security . | . . . Peak Influence 70 | 10 70 30 Initial . | . . . Average 8 | 1 12 4 Influence Increases 212 | 25 149 38 Destroy 0b10 Robot/C 120 | . 100 20 Destroy 0b10 Robot/NC 40 | 25 10 5 Destroy Leader 36 | . 24 12 Destroy Structure 1 | . . 1 Partial Spotted 15 | . 15 . Influence Decreases 212 | 25 149 38 Time Decay 212 | 25 149 38 Squads Dispatched . | . . . Investigation . | . . . Extermination . | . . . Reinforcement . | . . . Assault . | . . . Garrison . | . . . Intercept . | . . . Searches Triggered . | . . . Construction Impeded . | . . . Haulers Reinforced . | . . . Active Scanning Responses . | . . . Cargo Convoy Interrupts . | . . . Stealth | -11 -10 -9 --------- Run | Yrd Mat Mat Distress Signals . | . . . Communications Jammed . | . . . Distress Signals . | . . . Times Spotted 15 | . 14 1 Peak Tracking Total 3 | . 3 1 Tactical Retreats 1 | . 1 . Traps | -11 -10 -9 ------- Run | Yrd Mat Mat Traps Triggered 3 | . 2 1 Indirectly . | . . . Trap Hack Attempts . | . . . Triggered . | . . . Disarmed . | . . . Reprogrammed . | . . . Reused . | . . . Traps Extracted . | . . . Installed . | . . . Triggered . | . . . Machines | -11 -10 -9 ---------- Run | Yrd Mat Mat Machines Disabled . | . . . Max in Single Turn . | . . . Machines Repaired . | . . . Machines Dismantled . | . . . Machines Sabotaged . | . . . Overloaded Fab Kills . | . . . Hacking | -11 -10 -9 --------- Run | Yrd Mat Mat Machines Accessed 1 | . . 1 Terminals 1 | . . 1 Fabricators . | . . . Repair Stations . | . . . Recycling Units . | . . . Scanalyzers . | . . . Garrison Access . | . . . Total Hacks 4 | . . 4 Successful 2 | . . 2 Failed 2 | . . 2 Catastrophic 1 | . . 1 Database Lockouts . | . . . Manual 4 | . . 4 Terminals 4 | . . 4 Fabricators . | . . . Repair Stations . | . . . Recycling Units . | . . . Scanalyzers . | . . . Garrison Access . | . . . Terminal Hacks . | . . . Fabricator Hacks . | . . . Repair Station Hacks . | . . . Recycling Unit Hacks . | . . . Scanalyzer . | . . . Garrison Access Hacks . | . . . Unauthorized Hacks 2 | . . 2 Terminals 2 | . . 2 Botnet 1 | . . 1 Skim 1 | . . 1 Fabricators . | . . . Repair Stations . | . . . Recycling Units . | . . . Scanalyzers . | . . . Garrison Access . | . . . Data Cores Recovered . | . . . Used . | . . . Hacking Detections 1 | . . 1 Full Trace Events . | . . . Feedback Events . | . . . Feedback Blocked . | . . . Robot Schematics Acquired . | . . . Robots Built . | . . . Authchips . | . . . Time . | . . . Total Robot Build Rating . | . . . Part Schematics Acquired . | . . . Parts Built . | . . . Authchips . | . . . Time . | . . . Total Part Build Rating . | . . . Part Studies Acquired . | . . . Parts Repaired . | . . . Time . | . . . Parts Recycled . | . . . Recycled Matter . | . . . Retrieved Matter . | . . . Retrieved Components . | . . . Parts Scanalyzed . | . . . Part Schematics Acquired . | . . . Parts Damaged . | . . . Bothacking | -11 -10 -9 ------------ Run | Yrd Mat Mat Used RIF Installer . | . . . Robots Hacked . | . . . Non-combat . | . . . Combat . | . . . Robot Hacks Applied . | . . . Relay Couplers Released . | . . . Fabnet Peak Effective % . | . . . Robots Rewired . | . . . Allies Hacked . | . . . Hacks Repelled . | . . . Allies | -11 -10 -9 -------- Run | Yrd Mat Mat Total Allies . | . . . Largest Group . | . . . Highest-Rated Group . | . . . Highest-Rated Ally . | . . . Total Orders . | . . . Ally Attacks . | . . . Total Damage . | . . . Kills . | . . . Allies Corrupted . | . . . Allies Melted . | . . . Intel | -11 -10 -9 ------- Run | Yrd Mat Mat Active Infowar (turns) 1030 | 36 725 269 Seismic 1030 | 36 725 269 Robot Analysis Total . | . . . Derelict Logs Recovered . | . . . Drone Launches . | . . . Drone Recoveries . | . . . Exploration | -11 -10 -9 ------------- Run | Yrd Mat Mat Turns Passed 1237 | 222 746 269 Spaces Moved 634 | 112 424 98 Core 8 | 8 . . Treads . | . . . Legs 626 | 104 424 98 Wheels . | . . . Hover . | . . . Flight . | . . . Fastest Speed 50 | 50 120 190 Average Speed 149 | 115 133 255 Slowest Speed 260 | 120 260 260 Overloaded Moves . | . . . Propulsion Burnouts . | . . . Robots Hopped . | . . . Potential Cave-ins . | . . . Cave-ins Triggered . | . . . Exploration Rate (%) 25 | 5 58 13 Regions Visited 2 Branch Regions . Pre-discovered Areas . | . . . Known Exits Taken . | . . . Unknown Exits Taken 2 | 1 1 . Scrap Searched . | . . . Spaces Dug . | . . . Terrain Destroyed 1 | . . 1 Melee . | . . . Projectile 1 | . . 1 AOE . | . . . Terrain Rammed . | . . . Walls Destroyed . | . . . Machines Disabled . | . . . Actions | -11 -10 -9 --------- Run | Yrd Mat Mat Total 798 | 150 541 107 Wait 66 | . 66 . Move 632 | 111 423 98 Hop . | . . . Pick Up 12 | 2 8 2 Fast Attach 7 | 7 . . Attach 3 | . 2 1 Detach . | . . . Swap 5 | 1 3 1 Drop 1 | . 1 . Fire 68 | 28 35 5 Melee . | . . . Ram . | . . . Kick 4 | 1 3 . Crush . | . . . Escape Stasis . | . . . Rewire . | . . . Trap . | . . . Miscellaneous . | . . . Route ------- -11/Scrapyard -10/Materials (discovered 3 exits: *Mat x2 / [*Sub]) -9/Materials History --------- Turn | Location | Event 4 | -11/Scrapyard | Discovered new exit (range 14) 223 | -11/Scrapyard | Entered Materials 300 | -10/Materials | Build established: Mutant 333 | -10/Materials | Discovered new exit (range 11) 723 | -10/Materials | Derelicts attacked the area 736 | -10/Materials | Discovered new exit (range 7) 797 | -10/Materials | Core integrity fell below 50% 948 | -10/Materials | Discovered new exit (range 5) 969 | -10/Materials | Entered another Materials area 969 | -9/Materials | Evolved 2 slots: Propulsion x1, Weapon x1 1238 | -9/Materials | Self-destructed Last Messages --------------- Terminal linked with 0 systems. Awaiting botnet instructions. >>Trojan(Skim) Trojan loaded successfully. Testing... Terminal linked with 0 systems. Please expand to 4 more systems! 01177_ Acquired Cooling System. 01225_ A-02 Transporter destroyed. 01228_ K-01 Serf collects debris. 01229_ U-05 Engineer builds a Wall. 01229_ K-01 Serf collects debris. 01236_ Triggered Blade Trap. 01236_ Massive razor-sharp blades shoot up from within the floor. 01236_ Sub. Machine Gun severed. 01236_ Ion Engine severed. 01236_ Aluminum Leg severed. 01236_ K-01 Serf collects debris. 01236_ U-05 Engineer lays Concrete. Map ----- +----------------------------------------------------+ | ??????????????????????????????????# # """"" #?? | | ??????????????????????????????????# # """"" #?? | | ??????????????????????????????????# + """"" #?? | | ??????????????????????????????????# # """"" #?? | | ??????????????????????????????????# # #?? | | ?????????????????????????????????## ##########?? | | ?????????????????????????????????# #?????????? | | ?????????????????????????????????# #?????????? | | ?????????????????????????????????# = [ #?????????? | | ?????????????????????????????????# #?????????? | | ?????????????????????????????????# #?????????? | | ?????????????????????????????????## ##?????????? | | ??????????????????????????????????# #??????????? | | ???????????????????????????????? ## #??????????? | | ???????????????????????????????[ ## #??????????? | | ??????????????????????????????? ## #??????????? | | ?????????????????????????????= ## ####???????? | | ???????????????????????????!!= ## !##??????? | | ??????????????????????????# = # !#??????? | | ??????????????????????????# ## !#??????? | | ??????????????????????????# ## !#??????? | | ??????????????????????##+## """ ## !#??????? | | ???????????############ # """ ## !##??????? | | ???????????? # """ ## ####???????? | | ?????????????????# *[# ## ##?????????? | | ?????????????????# =m@####+### #?????????? | | ?????????????????# k^u!! #?????????? | | ?????????????????# kk^! T #?????????? | | ?????????????????# ^] #?????????? | | ???????????????### ####+##### #?????????? | | ???????? + ########?????????? | | ???????????############## #????????????????? | | ????????????????????????# """"" #????????????????? | | ????????????????????????# """"" #????????????????? | | ????????????????????????# """"" #????????????????? | | ????????????????????????# """"" #????????????????? | | ????????????????????????# """"" #????????????????? | | ????????????????????????# """"" #????????????????? | | ????????????????????????# """"" #????????????????? | | ????????????????????????# #????????????????? | | ????????????????????????# #????????????????? | | ????????????????????????#########????????????????? | | ?????????????????????????????????????????????????? | | ?????????????????????????????????????????????????? | | ?????????????????????????????????????????????????? | | ?????????????????????????????????????????????????? | | ?????????????????????????????????????????????????? | | ?????????????????????????????????????????????????? | | ?????????????????????????????????????????????????? | | ?????????????????????????????????????????????????? | +----------------------------------------------------+ Best States ------------- Heat Dissipation 28 Energy Generation 10 Energy Capacity 250 Matter Stores 300 Matter Capacity 300 Sight Range 16 Terrain Scan Density 10 Evasion (%) 55 Item Schematics ----------------- None Robot Schematics ------------------ None Fabricated ------------ Nothing Repaired ---------- Nothing Studied --------- None Alien Tech Used ----------------- None Achievements -------------- None Challenges ------------ None Game ------ Seed ThermicDisruptorDissipator Manual? 0 Play Time 00:05:38 Cumulative 282.7 hours Start 2025.12.30 @ 18:10:41 End 2026.01.17 @ 15:45:22 Sessions 4 Manual Loads 0 Difficulty Rogue Special Mode None Game No. 162 Rogue 162 Adventurer 0 Explorer 0 Win Type - Total 35 Types 17/1/11/1/0/1/2/1/0/1 Lore% 85 Gallery% 74 Achievement% 61 Wizard Run 0 Options --------- Layout 1 ASCII 0 Keyboard 0 Movement Arrows Keybinds 0 Fullscreen 2 Font 24/Tamsyn Map View 50x35 Zoom Use 0% Tactical HUD 1 Map Filters NONE Filters NONE Steam 1 RUN: 6e38a511-73ca-4b3e-8247-977358c5430a